Cogmind - Beta 15 @@@ ROGUE MODE // 2025.05.09 @ 02:10:48 Player: Ultra Sane Result: Destroyed by G-47 Trooper with Particle Gun Performance ------------- Evolutions (0) 0 Regions Visited (2) 400 Robots Destroyed (23) 115 Value Destroyed (217) 217 Prototype IDs (0) 0 Alien Tech Used (0) 0 Bonus (0) 0 TOTAL SCORE: 732 Bonus ------- None Cogmind --------- Core Integrity 0/250 Matter 247/300 Energy 87/100 System Corruption 8% Temperature Cool (9) Movement Core (50) Location -10/Mines Parts ------- > --- POWER (1) -------- (None) > --- PROPULSION (2) --- (None) > --- UTILITY (2) ------ Improved Terrain Scanner Improved Terrain Scan Processor > --- WEAPON (2) ------- Scythe > --- INVENTORY (5) ---- Light Ion Engine Grenade Launcher Grenade Launcher Improved Datajack Peak State ------------ > --- POWER ------------ Light Ion Engine > --- PROPULSION ------- Light Treads Light Treads > --- UTILITY ---------- Improved Terrain Scanner Improved Terrain Scan Processor > --- WEAPON ----------- Improved Datajack Improved Datajack > --- INVENTORY -------- Light Ion Engine Grenade Launcher Grenade Launcher Scythe [Rating: 15] Favorites ----------- Power Light Ion Engine Engine Light Ion Engine Propulsion Light Treads Treads Light Treads Leg Aluminum Leg Flight Unit Flight Unit Utility Improved Terrain Scanner Device Improved Terrain Scanner Storage Small Storage Unit Processor Improved Terrain Scan Processor Weapon Grenade Launcher Energy Gun Medium Laser Launcher Grenade Launcher Special Weapon Mining Laser Slashing Weapon Scythe Special Melee Weapon Improved Datajack Build | -11 -10 -10 ------- Run | Yrd Mat Min Slots Evolved . | . . . Power . | . . . Propulsion . | . . . Utility . | . . . Weapon . | . . . Parts Attached 18 | 8 2 8 Power 1 | 1 . . Engine 1 | 1 . . Core . | . . . Reactor . | . . . Propulsion 5 | 3 . 2 Treads 2 | 2 . . Leg 1 | 1 . . Wheel . | . . . Hover . | . . . Flight 2 | . . 2 Utility 3 | 2 . 1 Device 1 | 1 . . Storage 1 | 1 . . Processor 1 | . . 1 Hackware . | . . . Protection . | . . . Artifact . | . . . Weapon 9 | 2 2 5 Energy Gun 3 | 2 1 . Energy Cannon . | . . . Ballistic Gun . | . . . Ballistic Cannon . | . . . Launcher 2 | . 1 1 Special Weapon 1 | . . 1 Impact Weapon . | . . . Slashing Weapon 1 | . . 1 Piercing Weapon . | . . . Special Melee Weapon 2 | . . 2 Unidentified Prototypes . | . . . Corrupted Parts 2 | . . 2 System Corruption 8 | . . 8 Parts Lost 4 | . . 4 Power 1 | . . 1 Propulsion 2 | . . 2 Utility . | . . . Weapon 1 | . . 1 Highest Loss Streak 4 | . . 4 To Critical Strikes . | . . . Average Backups 4 | 4 5 4 Power . | . 1 1 Propulsion 1 | 1 1 . Utility . | . . . Weapon 1 | 1 2 1 Tool/Special . | . . . Unused Backups 5 | . 1 4 Power 1 | . . 1 Propulsion 1 | . 1 . Utility 3 | . . 3 Weapon . | . . . Tool/Special . | . . . Average Slot Usage (%) 99 | . 100 98 Engine 13 | . 14 13 Treads 27 | . 28 27 Device 13 | . 14 13 Storage 9 | . 14 6 Processor 4 | . . 7 Energy Gun 6 | . 14 1 Launcher 14 | . 13 14 Slashing Weapon 3 | . . 5 Special Melee Weapon 3 | . . 5 Peak Build Rating 15 | 9 9 15 Average Rating 9 | 5 9 11 On Entrance 6 | . 9 9 Naked Turns . | . . . Heaviest Build 15 | 12 14 15 Greatest Support 40 | 40 40 40 Greatest Overweight (x) 4 | 1 . 4 Average Overweight (x) . | . . . Largest Inventory Capacity 8 | 8 8 8 Average Capacity 7 | 7 8 6 Most Carried 8 | 6 6 8 Average Carried 4 | 4 5 4 Final Capacity 8 | 8 8 5 Final Carried 6 | 5 6 4 Class Distribution -------------------- 100% | Mutant Dominant Class ---------------- Mutant | -10/Materials Mutant | -10/Mines Resources | -11 -10 -10 ----------- Run | Yrd Mat Min Matter Collected 427 | 279 65 83 Remotely . | . . . Salvage Created 458 | 243 115 100 Parts 38 | 14 9 15 Haulers Intercepted . | . . . Recyclers Shooed 1 | 1 . . Parts Field Recycled . | . . . Retrieved Matter . | . . . Parts Self-Destructed . | . . . Prevented . | . . . Kills | -11 -10 -10 ------- Run | Yrd Mat Min Combat Hostiles Destroyed 10 | . 7 3 Melee 3 | . . 3 AOE 7 | . 7 . Classes Destroyed 6 | 3 2 1 Worker 3 | 3 . . Builder 1 | . . 1 Tunneler 7 | 6 . 1 Recycler 2 | 1 1 . Swarmer 8 | . 6 2 Grunt 2 | . 1 1 Best Kill Streak 5 | 3 5 2 Combat Bots Only 3 | . 3 2 Max Kills in Single Turn 3 | 1 3 1 Gunslinging . | . . . Exploded 3 | . 3 . Melee 1 | . . 1 Uniques/NPCs Destroyed . | . . . Combat | -11 -10 -10 -------- Run | Yrd Mat Min Hostile Shots Fired 76 | . 25 51 Missed 16 | . 8 8 Hits 60 | . 17 43 Projectile 60 | . 17 43 Damage Taken 666 | . 159 507 Core 255 | . 14 241 Absorbed by Shields . | . . . Regen/Repaired (Parts) 4 | . 4 . Core Remaining (%) 100 | 100 . . Volleys Fired 23 | 13 9 1 Largest 2 | 2 2 2 Hottest 90 | 90 80 80 Shots Fired 44 | 26 16 2 Gun 36 | 26 9 1 Cannon . | . . . Launcher 8 | . 7 1 Special . | . . . Kinetic . | . . . Thermal 36 | 26 9 1 Explosive 8 | . 7 1 Electromagnetic . | . . . Robot Hit Streak 6 | 6 5 . Robot Miss Streak 3 | 2 3 2 Penetration Max . | . . . Secondary Targets . | . . . Shots Hit Robots 40 | 15 8 17 Core Hits 30 | 12 12 6 Critical Kills . | . . . Critical Parts Destroyed . | . . . Critical Strikes 1 | . 1 . Burn 1 | . 1 . Melee Attacks 23 | . . 23 Impact . | . . . Slashing 19 | . . 19 Piercing . | . . . Sneak Attacks 6 | . . 6 Combat Hostiles . | . . . Follow-up Attacks . | . . . Damage Inflicted 1263 | 181 529 553 Guns 214 | 177 37 . Cannons . | . . . Explosions 543 | . 492 51 Melee 500 | . . 500 Ramming 6 | 4 . 2 Kinetic . | . . . Thermal 214 | 177 37 . Explosive 543 | . 492 51 Electromagnetic . | . . . Impact . | . . . Slashing 500 | . . 500 Piercing . | . . . Highest Corruption 8 | . . 8 Average Corruption 7 | . . 7 Corruption Purged . | . . . Corruption Blocked . | . . . Effects 13 | . . 13 Message Errors 3 | . . 3 Matter Fused 3 | . . 3 Heat Flow Errors 1 | . . 1 Energy Discharges 3 | . . 3 Data Loss (minor) 3 | . . 3 Overload Shots . | . . . Overflow Damage 76 | . 4 72 Projectiles . | . . . Explosions 4 | . 4 . Melee 72 | . . 72 Knockbacks . | . . . Impact . | . . . Kinetic . | . . . Secondary . | . . . Self-Inflicted Damage 29 | . 29 . Shots 2 | . 2 . Rammed 1 | . . 1 Targets Rammed 2 | 1 . 1 Kicked 1 | 1 . . Crushed . | . . . Highest Temperature 90 | 90 72 90 Average Temperature 30 | 32 26 35 Received Heat Transfer 147 | . . 147 Siege Activations . | . . . Martial Activations . | . . . Shielding Activations . | . . . Robots Disrupted . | . . . Combat Hostiles . | . . . Robots Corrupted . | . . . Combat Hostiles . | . . . Parts Fried . | . . . Impact Corruptions . | . . . Robots Melted . | . . . Combat Hostiles . | . . . Parts Melted . | . . . Heat Transferred 644 | 459 185 . Parts Sabotaged . | . . . Parts Stolen . | . . . Parts Stripped . | . . . Power Chain Reactions . | . . . Alert | -11 -10 -10 ------- Run | Yrd Mat Min Maximum Alert Level . | . . . Low Security (%) 100 | 100 100 100 Level 1 . | . . . Level 2 . | . . . Level 3 . | . . . Level 4 . | . . . Level 5 . | . . . High Security . | . . . Max Security . | . . . Peak Influence 165 | 10 165 50 Initial 8 | . . 8 Average 25 | 1 74 4 Influence Increases 383 | 50 215 118 Destroy 0b10 Robot/C 200 | . 140 60 Destroy 0b10 Robot/NC 65 | 50 5 10 Destroy Leader 40 | . 30 10 Destroy Structure 48 | . 40 8 Lose Combat Pursuer 30 | . . 30 Influence Decreases 371 | 50 192 129 Entered New Map 15 | . . 15 Time Decay 330 | 50 192 88 Lost Part 26 | . . 26 Squads Dispatched 3 | . 3 . Investigation 2 | . 2 . Extermination . | . . . Reinforcement 1 | . 1 . Assault . | . . . Garrison . | . . . Intercept . | . . . Searches Triggered . | . . . Construction Impeded . | . . . Haulers Reinforced . | . . . Active Scanning Responses . | . . . Cargo Convoy Interrupts . | . . . Stealth | -11 -10 -10 --------- Run | Yrd Mat Min Distress Signals 1 | . 1 . Communications Jammed . | . . . Distress Signals . | . . . Times Spotted 16 | . 9 7 Peak Tracking Total 3 | . 3 3 Tactical Retreats 2 | . . 2 Traps | -11 -10 -10 ------- Run | Yrd Mat Min Traps Triggered 2 | . 1 1 Indirectly . | . . . Trap Hack Attempts . | . . . Triggered . | . . . Disarmed . | . . . Reprogrammed . | . . . Reused . | . . . Traps Extracted . | . . . Installed . | . . . Triggered . | . . . Machines | -11 -10 -10 ---------- Run | Yrd Mat Min Machines Disabled . | . . . Max in Single Turn . | . . . Machines Repaired . | . . . Machines Dismantled . | . . . Machines Sabotaged . | . . . Overloaded Fab Kills . | . . . Hacking | -11 -10 -10 --------- Run | Yrd Mat Min Machines Accessed 3 | . 2 1 Terminals . | . . . Fabricators . | . . . Repair Stations 1 | . 1 . Recycling Units 1 | . 1 . Scanalyzers . | . . . Garrison Access . | . . . Total Hacks 11 | . 10 1 Successful 9 | . 8 1 Failed 2 | . 2 . Catastrophic . | . . . Database Lockouts . | . . . Manual . | . . . Terminals . | . . . Fabricators . | . . . Repair Stations 3 | . 3 . Recycling Units 7 | . 7 . Scanalyzers . | . . . Garrison Access . | . . . Terminal Hacks 1 | . . 1 Open Door 1 | . . 1 Fabricator Hacks . | . . . Repair Station Hacks 2 | . 2 . Scan Component 1 | . 1 . Repair 1 | . 1 . Recycling Unit Hacks 6 | . 6 . Recycle Component 3 | . 3 . Process 2 | . 2 . Retrieve Matter 1 | . 1 . Scanalyzer . | . . . Garrison Access Hacks . | . . . Unauthorized Hacks . | . . . Terminals . | . . . Fabricators . | . . . Repair Stations . | . . . Recycling Units . | . . . Scanalyzers . | . . . Garrison Access . | . . . Data Cores Recovered . | . . . Used . | . . . Hacking Detections 1 | . 1 . Full Trace Events 1 | . 1 . Feedback Events . | . . . Feedback Blocked . | . . . Robot Schematics Acquired . | . . . Robots Built . | . . . Authchips . | . . . Time . | . . . Total Robot Build Rating . | . . . Part Schematics Acquired . | . . . Parts Built . | . . . Authchips . | . . . Time . | . . . Total Part Build Rating . | . . . Parts Repaired 1 | . 1 . Time 26 | . 26 . Parts Recycled 3 | . 3 . Recycled Matter 126 | . 126 . Retrieved Matter 126 | . 126 . Retrieved Components . | . . . Parts Scanalyzed . | . . . Part Schematics Acquired . | . . . Parts Damaged . | . . . Bothacking | -11 -10 -10 ------------ Run | Yrd Mat Min Used RIF Installer . | . . . Robots Hacked 2 | . . 2 Non-combat 1 | . . 1 Combat 1 | . . 1 Robot Hacks Applied 3 | . . 3 parse_system 2 | . . 2 no_distress 1 | . . 1 Relay Couplers Released . | . . . Fabnet Peak Effective % . | . . . Robots Rewired . | . . . Allies Hacked . | . . . Hacks Repelled . | . . . Allies | -11 -10 -10 -------- Run | Yrd Mat Min Total Allies . | . . . Largest Group . | . . . Highest-Rated Group . | . . . Highest-Rated Ally . | . . . Total Orders . | . . . Ally Attacks . | . . . Total Damage . | . . . Kills . | . . . Allies Corrupted . | . . . Allies Melted . | . . . Intel | -11 -10 -10 ------- Run | Yrd Mat Min Active Infowar (turns) 1277 | 106 471 700 Terrain 1277 | 106 471 700 Robot Analysis Total . | . . . Derelict Logs Recovered 1 | . . 1 Drone Launches . | . . . Drone Recoveries . | . . . Exploration | -11 -10 -10 ------------- Run | Yrd Mat Min Turns Passed 1502 | 330 471 701 Spaces Moved 708 | 174 205 329 Core 12 | 10 . 2 Treads 552 | 20 205 327 Legs 144 | 144 . . Wheels . | . . . Hover . | . . . Flight . | . . . Fastest Speed 50 | 50 160 50 Average Speed 158 | 153 160 159 Slowest Speed 250 | 190 160 250 Overloaded Moves . | . . . Propulsion Burnouts . | . . . Robots Hopped . | . . . Potential Cave-ins . | . . . Cave-ins Triggered . | . . . Exploration Rate (%) 27 | 6 32 43 Regions Visited 2 Branch Regions 1 Pre-discovered Areas . | . . . Known Exits Taken . | . . . Unknown Exits Taken 2 | 1 1 . Scrap Searched 1 | . . 1 Spaces Dug . | . . . Terrain Destroyed 48 | . 40 8 Melee . | . . . Projectile . | . . . AOE 48 | . 40 8 Terrain Rammed . | . . . Walls Destroyed . | . . . Machines Disabled . | . . . Actions | -11 -10 -10 --------- Run | Yrd Mat Min Total 1016 | 211 331 474 Wait 201 | . 111 90 Move 706 | 173 204 329 Hop . | . . . Pick Up 24 | 12 5 7 Fast Attach . | . . . Attach 12 | 9 . 3 Detach 5 | 2 . 3 Swap 11 | 1 2 8 Drop 9 | . . 9 Fire 23 | 13 9 1 Melee 23 | . . 23 Ram . | . . . Kick 1 | 1 . . Crush 1 | . . 1 Escape Stasis . | . . . Rewire . | . . . Trap . | . . . Miscellaneous . | . . . Route ------- -11/Scrapyard -10/Materials -10/Mines (discovered 1 exit: [Mat]) History --------- Turn | Location | Event 12 | -11/Scrapyard | Discovered new exit (range 16) 331 | -11/Scrapyard | Entered Materials 332 | -10/Materials | Build established: Mutant 734 | -10/Materials | Repaired Flight Unit 778 | -10/Materials | Discovered new exit (range 7) 802 | -10/Materials | Entered Mines 826 | -10/Mines | Learned Materials emergency access door positions 855 | -10/Mines | YI-UF0 nonchalantly dropped a Grenade Launcher on the ground 1097 | -10/Mines | Met a Derelict who couldn't figure out how to use a Trap Extractor 1247 | -10/Mines | Discovered new exit (range 16) 1480 | -10/Mines | Core integrity fell below 50% 1500 | -10/Mines | Core integrity fell below 20% 1503 | -10/Mines | Destroyed by G-47 Trooper with Particle Gun Last Messages --------------- K-01 Serf collects debris. S-10 Pest destroyed. System corrupted: Component data lost. K-01 Serf collects debris. Acquired 15 matter. K-01 Serf collects debris. System corrupted: Component data lost. Hold RMB on a map location to designate it as a relative view centerpoint. This is especially useful while zoomed, in order to see further in your current direction of exploration. Try it now. System corrupted: Heat flow error (+108). Lgt. Treads destroyed. Destroyed Lgt. Nuclear Core. Lgt. Ion Engine destroyed. System corrupted: Energy discharge (-31). Lgt. Treads destroyed. Imp. Datajack destroyed. G-34 Mercenary destroyed. Map ----- +----------------------------------------------------+ | | | | | | | | | | | | | | | | | | | | | | | | | | | | | | | | | | | | | | | | | ???????????#????###??#?###?##?###?#?###?#????? | | ?????????????#??###########??###?######?##?#?? | | ?????????? ### ####?##?#??#??#????? | | ????????????#?### g #?#?#??###?##?????# | | ?????????#?## ? !#########???????#?? | | ?????? ?##?????#####?# @%###### ####?#????? | | ???????????#? ??##???### = #### ##?##??#?# | | ?????????#?## ########## ### #####?#??? | | ??????????### ### ###?##?#??? | | ??????????#?############# == [ #####???##? | | ????? ??????#?##?###??#### [ % * ##?###??#??? | | ??????? ?##?##??####??##?##### # ######?#?#?? | | ????#? ??#?#????####???####### ## ######??#### | | ??????????###??###?###??####?# #?#######?##??? | | ???????????#??####?? ######### #?#####??#?##?# | | ???????????????####?? #####?## #####?######### | | ???????????##???### ###?#?## #?############# | | ??????????#?????? ? ?#?#?### ### ### | | ???????????#?##? ? ?#?### ### ##? | | ????????????#?? #??? ? ##?# ### """ ##? | | ????????????? ??#??# ##### ###?# """ #?? | | ??????????????????## ##### ##### """ ### | | ?????????????#?##?## ##? | | ??????????????#????# ### #### ## ##? | | ??????????????#????##? ### #### #### #######?# | | ????????????????????###?## ##?# #### #?#?#???? | | ???????????????????##?##???#?## #?#?????? | | ????????????????##?##??### #### ######??#??#?? | | ???????????????? #??##?### ?#?# #?########???? | | ?????????????????###??##?????## ##???#####??#? | +----------------------------------------------------+ Best States ------------- Heat Dissipation 25 Energy Generation 10 Energy Capacity 125 Matter Stores 300 Matter Capacity 300 Sight Range 16 Terrain Scan Range 16 Terrain Scan Density 110 Evasion (%) 50 Recoil Reduction 2 Item Schematics ----------------- None Robot Schematics ------------------ None Fabricated ------------ Nothing Repaired ---------- Flight Unit | 80% | -10/Materials Alien Tech Used ----------------- None Achievements -------------- None Challenges ------------ None Game ------ Seed TrackerSuperquantumCore Manual? 0 Play Time 01:11:46 Cumulative 9.1 hours Start 2025.05.06 @ 19:30:52 End 2025.05.09 @ 02:10:48 Sessions 3 Manual Loads 0 Difficulty Rogue Special Mode None Game No. 14 Rogue 14 Adventurer 0 Explorer 0 Win Type - Total 0 Types 0/0/0/0/0/0/0/0/0/0 Lore% 4 Gallery% 10 Achievement% 12 Wizard Run 0 Options --------- Layout 1 ASCII 0 Keyboard 0 Movement Numpad Keybinds 0 Fullscreen 2 Font 24/Smallcaps Map View 25x17 Zoom Use 79% Tactical HUD 0 Map Filters NONE Filters NONE Steam 1 RUN: 5e47ae3e-ab9c-40ae-842c-7f3211af9e08